bitfinex-derivatives/quotes_ETHF0:USTF0_20250709
["timestamp","ask_amount","ask_price","bid_price","bid_amount"]
[1752075204086,0.6316,2655.0,2654.9,5.63232]
[1752075204087,1.3848,2655.0,2654.9,5.63232]
[1752075204296,44.10223446,2655.3,2655.2,0.75313]
[1752075204297,41.55312,2655.3,2655.2,0.75313]
[1752075204486,0.75312,2655.3,2655.2,1.41143]
[1752075204686,3.96089,2655.4,2655.3,0.7531]
[1752075204892,0.7531,2655.3,2655.2,1.013]
[1752075205192,0.7531,2655.3,2655.2,1.41142]
[1752075205393,1.3847,2655.3,2655.2,2.42442]
[1752075205796,0.7531,2655.3,2655.2,2.42442]
[1752075206198,1.3847,2655.3,2655.2,1.6713]
[1752075206792,1.3847,2655.3,2655.2,2.9392]
[1752075207189,1.3847,2655.3,2655.2,1.9262]
[1752075208695,1.3847,2655.3,2655.2,5.134]
[1752075208988,1.3847,2655.3,2655.2,3.2078]
[1752075208989,4.68693446,2655.3,2655.2,3.2078]
[1752075209790,0.75322,2654.9,2654.8,4.5473]
[1752075209992,1.38482,2654.9,2654.8,5.95884]
[1752075210192,1.38482,2654.9,2654.8,6.97184]
[1752075210894,1.38482,2654.9,2654.8,6.2186]
[1752075212594,0.75322,2654.9,2654.8,6.97184]
[1752075212800,0.75321,2655.0,2654.9,0.7532]
[1752075212997,0.75321,2655.0,2654.9,2.4245]
[1752075213198,0.75321,2655.0,2654.9,1.6713]
[1752075213499,1.38481,2655.0,2654.9,1.6713]
[1752075213894,1.38481,2655.0,2654.9,2.42452]
[1752075214390,1.38481,2655.0,2654.9,0.6583]
[1752075214795,0.75322,2654.9,2654.8,3.2078]
[1752075214996,0.75322,2654.9,2654.8,3.8661]
[1752075215498,4.68705446,2654.9,2654.8,3.8661]
[1752075215695,4.05545446,2654.9,2654.8,3.8661]
[1752075216096,4.68705446,2654.9,2654.8,0.6583]
[1752075218399,1.38482,2654.9,2654.8,2.41314]
[1752075218599,1.38482,2654.9,2654.8,1.6599]
[1752075219398,0.75322,2654.9,2654.8,2.41314]
[1752075220194,1.40172,2654.9,2654.8,2.41314]
[1752075221096,1.40172,2654.9,2654.8,0.6583]
[1752075221305,0.75327,2654.7,2654.6,4.96268]
[1752075221599,1.40177,2654.7,2654.6,5.58288]
[1752075222301,0.6485,2654.7,2654.6,5.58288]
[1752075222503,1.40177,2654.7,2654.6,5.58288]
[1752075222799,0.6485,2654.7,2654.6,5.58288]
[1752075223404,0.75326,2654.8,2654.7,0.75327]
[1752075223697,0.6526,2655.2,2654.7,1.6218]
[1752075223907,0.75321,2655.0,2654.9,3.96099]
[1752075224205,0.75321,2655.0,2654.9,5.58279]
[1752075224404,0.75318,2655.1,2655.0,0.75317]
[1752075224604,0.75318,2655.1,2655.0,1.37337]
[1752075224806,0.75318,2655.1,2655.0,2.37497]
[1752075225005,1.40168,2655.1,2655.0,1.6218]
[1752075225704,1.40168,2655.1,2655.0,2.37499]
[1752075226206,1.40168,2655.1,2655.0,1.6218]
[1752075226404,1.40168,2655.1,2655.0,0.6202]
[1752075228005,0.75319,2655.0,2654.9,3.2078]
[1752075228205,1.40169,2655.0,2654.9,3.828]
[1752075229314,1.40169,2655.0,2654.9,4.58122]
[1752075229513,1.40169,2655.0,2654.9,5.58282]
[1752075229813,0.75319,2655.0,2654.9,5.58282]
[1752075230409,1.40169,2655.0,2654.9,6.89392]
[1752075231108,1.40169,2655.0,2654.9,6.1407]
[1752075231410,1.40169,2655.0,2654.6,3.2078]
[1752075231411,0.75327,2654.7,2654.6,3.2078]
[1752075231607,0.75327,2654.7,2654.6,3.828]
[1752075231812,1.40177,2654.7,2654.6,3.828]
[1752075232718,1.40177,2654.7,2654.6,6.9129]
[1752075233312,1.40177,2654.7,2654.6,6.1596]
[1752075233612,1.40177,2654.7,2654.6,6.9129]
[1752075235209,1.40177,2654.7,2654.6,6.1596]
[1752075235408,1.40177,2654.7,2654.6,6.9129]
[1752075237014,0.6485,2654.7,2654.6,6.9129]
[1752075237215,1.40177,2654.7,2654.6,6.9129]
[1752075237718,3.63167448,2655.1,2654.8,0.75324]
[1752075238012,0.75318,2655.1,2655.0,1.37336]
[1752075238410,0.75318,2655.1,2655.0,3.61866]
[1752075239211,0.6526,2655.2,2655.1,0.75316]
[1752075239212,1.40575,2655.2,2655.1,0.75316]
[1752075239414,1.40575,2655.2,2655.1,2.37496]
[1752075239717,1.40575,2655.2,2655.1,1.6218]
[1752075240408,2.05425,2655.2,2655.1,1.6218]
[1752075240608,2.05425,2655.2,2655.1,2.37496]
[1752075240815,2.05425,2655.2,2655.1,1.6218]
[1752075241615,2.05425,2655.2,2655.1,2.37496]
[1752075242013,2.05425,2655.2,2655.1,1.6218]
[1752075242620,2.05425,2655.2,2655.1,2.37496]
[1752075242820,2.05425,2655.2,2655.1,1.6218]
[1752075243819,2.05425,2655.2,2655.1,2.37496]
[1752075244214,0.6526,2655.2,2655.1,2.37496]
[1752075244417,0.75312,2655.3,2655.2,0.75311]
[1752075244617,0.75307,2655.4,2655.3,0.75308]
[1752075244922,0.75307,2655.4,2655.3,3.66378]
[1752075247123,1.40157,2655.4,2655.3,3.66378]
[1752075248524,0.6485,2655.4,2655.3,3.66378]
[1752075249222,1.40157,2655.4,2655.3,3.66378]
[1752075250318,0.6485,2655.4,2655.3,3.66378]
[1752075251324,1.40157,2655.4,2655.3,3.66378]
[1752075251525,1.40157,2655.4,2655.3,2.9107]
[1752075251725,1.40157,2655.4,2655.3,3.6638]
[1752075255124,1.40157,2655.4,2655.2,3.2078]
[1752075255125,0.7531,2655.3,2655.2,3.96092]
[1752075255330,1.4134,2655.3,2655.2,4.63922]
[1752075255726,0.7531,2655.3,2655.2,3.8861]
[1752075255923,1.4134,2655.3,2655.2,3.8861]
[1752075256928,0.6603,2655.3,2655.2,5.66153]
[1752075257131,0.75308,2655.4,2655.3,0.7531]
[1752075257430,0.75307,2655.5,2655.4,0.75305]
[1752075257827,0.75307,2655.5,2655.4,3.71485]
[1752075258032,1.41337,2655.5,2655.4,3.71485]
[1752075258232,0.75307,2655.5,2655.4,3.71485]
[1752075258732,1.41337,2655.5,2655.4,3.71485]
[1752075263336,2.36358689,2655.6,2655.4,3.71485]
[1752075263337,0.6158,2655.6,2655.5,0.75305]
[1752075263537,0.6158,2655.6,2655.5,5.88055]
[1752075263733,1.36882,2655.6,2655.5,6.90285]
[1752075264331,3.77690689,2655.6,2655.5,3.2078]
[1752075264534,3.77690689,2655.6,2655.5,3.8861]
[1752075264735,3.11660689,2655.6,2655.5,3.8861]
[1752075264936,3.77690689,2655.6,2655.5,3.8861]
[1752075265738,3.77690689,2655.6,2655.5,3.2078]
[1752075266136,0.75308,2655.4,2655.2,3.2078]
[1752075266330,2.50086689,2655.4,2655.2,3.8861]
[1752075266540,2.50086689,2655.4,2655.2,3.2078]
[1752075266729,1.74778689,2655.4,2655.3,0.7531]
[1752075267129,3.16115689,2655.4,2655.3,0.7531]
[1752075267539,2.40808689,2655.4,2655.3,1.4314]
[1752075267937,3.16115689,2655.4,2655.3,1.4314]
[1752075268533,2.40808689,2655.4,2655.3,1.4314]
[1752075268740,3.16115689,2655.4,2655.3,1.4314]
[1752075269040,2.40808689,2655.4,2655.3,1.4314]
[1752075269241,3.16115689,2655.4,2655.3,0.7531]
[1752075269443,0.7531,2655.3,2655.2,3.2078]
[1752075269737,2.1657,2655.3,2655.2,3.2078]
[1752075270538,0.75319,2655.0,2654.9,3.961]
[1752075270844,3.16127689,2655.0,2654.9,3.2078]
[1752075271342,3.16127689,2655.0,2654.9,3.96102]
[1752075271634,2.50097689,2655.0,2654.9,3.96102]
[1752075271837,3.16127689,2655.0,2654.9,3.96102]
[1752075272644,3.16127689,2655.0,2654.9,3.2078]
[1752075274044,3.16127689,2655.0,2654.9,3.96102]
[1752075274244,3.16127689,2655.0,2654.9,3.2078]
[1752075276045,0.75327,2654.7,2654.6,3.2078]
[1752075276239,2.50105689,2654.7,2654.6,3.2078]
[1752075277246,0.75339,2654.3,2654.2,3.2078]
[1752075277451,2.50117689,2654.3,2654.2,3.8861]
[1752075277744,3.16147689,2654.3,2654.2,3.8861]
[1752075277939,2.50117689,2654.3,2654.2,3.8861]
[1752075278144,3.16147689,2654.3,2654.2,3.8861]
[1752075278345,3.16147689,2654.3,2654.2,3.2078]
[1752075279548,3.15317689,2654.3,2654.2,3.2078]
[1752075280249,3.15317689,2654.3,2654.2,3.8261]
[1752075280649,0.75347,2654.0,2653.9,3.2078]
[1752075280849,0.75356,2653.7,2653.6,0.9887]
[1752075281047,0.75361,2653.5,2653.4,1.3144]
[1752075281448,0.75361,2653.5,2653.4,1.9327]
[1752075281745,0.75361,2653.5,2653.4,2.9214]
[1752075284853,41.5536,2653.6,2653.4,2.9214]
[1752075285047,3.2078,2654.0,2653.5,4.5167]
[1752075285249,0.75347,2654.0,2653.9,0.6183]
[1752075285551,0.75347,2654.0,2653.9,1.607]
[1752075285752,0.75347,2654.0,2653.9,3.5941]
[1752075286750,0.75346,2654.1,2654.0,0.75346]
[1752075286949,0.75346,2654.1,2654.0,2.68066]
[1752075287149,0.75346,2654.1,2654.0,3.66936]
[1752075287349,0.75346,2654.1,2654.0,2.9159]
[1752075287850,0.75346,2654.1,2654.0,3.66937]
[1752075288054,0.75346,2654.1,2654.0,2.9159]
[1752075289057,3.2078,2654.7,2654.0,38.75737]
[1752075289257,0.75334,2654.5,2654.3,3.2078]
[1752075289458,0.75334,2654.5,2654.4,2.8661]
[1752075289657,0.75331,2654.6,2654.5,0.75331]
[1752075289859,0.75331,2654.6,2654.5,1.8774]
[1752075290059,3.15309689,2654.6,2654.5,1.8774]
[1752075290456,4.28306689,2654.6,2654.1,0.9887]
[1752075290661,3.2078,2655.0,2653.8,0.9887]
[1752075290662,0.7535,2653.9,2653.8,0.9887]
[1752075290957,2.50128689,2653.9,2653.8,1.607]
[1752075291154,7.50128689,2653.9,2653.8,1e-08]
[1752075291658,2.50128689,2653.9,2653.8,1e-08]
[1752075291858,41.5535,2653.9,2653.8,1e-08]
[1752075294268,0.75356,2653.7,2653.6,0.75357]
[1752075294663,0.652,2653.7,2653.6,1.37187]
[1752075295964,0.75351,2653.9,2653.8,0.75353]
[1752075296163,1.40551,2653.9,2653.8,1.37183]
[1752075296363,0.75351,2653.9,2653.8,1.37183]
[1752075296560,0.75353,2653.8,2653.5,3.2078]
[1752075296762,0.75352,2653.9,2653.8,0.75352]
[1752075297268,1.38238,2654.0,2653.8,0.75351]
[1752075297460,1.38238,2654.0,2653.9,0.7535]
[1752075297660,3.2078,2654.4,2654.2,0.7534]
[1752075297862,3.2078,2654.4,2653.8,0.6209]
[1752075297863,0.75343,2654.2,2654.1,0.75342]
[1752075298062,0.75346,2654.1,2654.0,0.75345]
[1752075299061,0.75344,2654.2,2654.1,0.75343]
[1752075299769,1.4054,2654.3,2654.2,0.75341]
[1752075300065,0.652,2654.3,2654.2,0.75341]
[1752075300272,42.20367,2654.4,2654.3,0.75339]
[1752075300470,41.4503,2654.4,2654.3,0.75339]
[1752075300666,0.6503,2654.4,2654.3,0.75339]
[1752075300974,0.652,2654.4,2654.3,0.75339]
[1752075301272,0.652,2654.4,2654.3,3.96119]
[1752075301870,3.2078,2655.0,2654.7,0.75327]
[1752075302169,3.2078,2655.0,2654.7,0.6183]
[1752075302170,1.40527,2654.8,2654.7,0.6183]
[1752075302668,0.75327,2654.8,2654.7,0.6183]
[1752075302970,1.40527,2654.8,2654.7,0.6183]
[1752075303170,0.75327,2654.8,2654.7,0.6183]
[1752075303570,1.40527,2654.8,2654.7,1.37157]
[1752075303768,1.40527,2654.8,2654.7,0.6183]
[1752075304168,1.40527,2654.8,2654.7,1.37157]
[1752075304369,1.40527,2654.8,2654.7,0.6183]
[1752075304574,3.961,2655.0,2654.9,0.75322]
[1752075304768,0.7532,2655.0,2654.9,1.607]
[1752075304974,1.4052,2655.0,2654.9,2.36022]
[1752075305174,1.4052,2655.0,2654.9,1.607]
[1752075305472,1.4052,2655.0,2654.9,1.37152]
[1752075306474,0.6494,2655.1,2655.0,0.75319]
[1752075306670,0.6494,2655.1,2655.0,1.37149]
[1752075306871,0.6494,2655.1,2655.0,3.63729]
[1752075307471,3.2078,2655.6,2655.0,2.8841]
[1752075307671,0.75308,2655.4,2655.3,0.75308]
[1752075308072,3.96084,2655.6,2655.2,1.2771]
[1752075308272,3.96084,2655.6,2655.5,0.75305]
[1752075308476,3.2078,2655.6,2655.4,0.75306]
[1752075308674,1.40505,2655.5,2655.4,0.75306]
[1752075308974,1.40506,2655.5,2655.4,0.75306]
[1752075309275,0.75309,2655.4,2655.2,1.2771]
[1752075309573,1.43167,2655.5,2655.3,0.75309]
[1752075310072,0.75307,2655.4,2655.3,0.75309]
[1752075310874,0.6786,2655.5,2655.3,0.75309]
[1752075310875,0.75305,2655.5,2655.4,0.75307]
[1752075311069,0.75305,2655.5,2655.4,2.11317]
[1752075311268,1.43165,2655.5,2655.4,2.78867]
[1752075311468,0.75305,2655.5,2655.4,2.78867]
[1752075311674,0.75304,2655.6,2655.4,2.78867]
[1752075311973,0.75304,2655.6,2655.4,2.0356]
[1752075312171,1.43165,2655.5,2655.4,2.78865]
[1752075312571,0.75305,2655.5,2655.4,2.78865]
[1752075312770,0.75304,2655.6,2655.5,0.75304]
[1752075312970,3.93615143,2655.8,2655.4,1.3601]
[1752075313169,1.43163,2655.6,2655.5,1.42854]
[1752075313369,1.43163,2655.6,2655.5,2.37804]
[1752075313370,0.6786,2655.6,2655.5,2.37804]
[1752075313670,1.43162,2655.6,2655.5,0.6755]
[1752075313871,1.43162,2655.6,2655.5,1.42855]
[1752075314169,0.6786,2655.6,2655.5,1.42855]
[1752075314364,1.43162,2655.6,2655.5,1.42855]
[1752075314576,1.43162,2655.6,2655.5,0.6755]
[1752075315275,1.43162,2655.6,2655.5,1.42855]
[1752075315670,1.43162,2655.6,2655.5,0.6755]
[1752075316174,1.43162,2655.6,2655.5,1.42855]
[1752075316870,1.43162,2655.6,2655.5,0.6755]
[1752075317375,0.75305,2655.5,2655.4,2.11315]
[1752075317675,0.75305,2655.5,2655.3,3.8329]
[1752075317676,0.75307,2655.4,2655.3,3.96089]
[1752075317871,1.43167,2655.4,2655.3,4.63639]
[1752075318171,1.74768653,2655.5,2655.4,0.75307]
[1752075318476,0.753,2655.7,2655.6,0.75302]
[1752075318678,3.17928653,2655.7,2655.6,0.6755]
[1752075319564,0.75302,2655.6,2655.5,0.75303]
[1752075319966,1.43162,2655.6,2655.5,2.68403]
[1752075320165,0.75302,2655.6,2655.5,2.68403]
[1752075320875,0.75302,2655.6,2655.3,3.9609]
[1752075320876,0.75307,2655.4,2655.3,3.9609]
[1752075321070,1.43167,2655.4,2655.3,4.6364]
[1752075321270,2.50074653,2655.5,2655.4,0.75307]
[1752075321574,3.17934653,2655.5,2655.4,1.42857]
[1752075323072,3.17934653,2655.5,2655.4,0.6755]
[1752075323282,0.75307,2655.4,2655.3,4.91038]
[1752075323480,1.38147,2655.4,2655.3,4.91038]
[1752075323779,2.06007,2655.4,2655.3,5.58588]
[1752075323980,1.38147,2655.4,2655.3,5.58588]
[1752075324280,0.6284,2655.4,2655.3,5.58588]
[1752075324476,0.75302,2655.6,2655.5,0.75305]
[1752075324675,1.43162,2655.6,2655.5,1.42855]
[1752075325979,1.43162,2655.6,2655.5,0.6755]
[1752075326180,3.17930653,2655.6,2655.5,0.6755]
[1752075327177,3.17930653,2655.6,2655.5,1.42855]
[1752075328482,1.38181,2655.7,2655.6,0.75302]
[1752075328778,1.38181,2655.7,2655.6,3.64512]
[1752075328975,1.3074,2655.7,2655.6,3.64512]
[1752075329181,0.6288,2655.7,2655.6,3.64512]
[1752075329376,0.75293,2656.0,2655.9,0.75291]
[1752075329577,1.43153,2656.0,2655.9,0.6755]
[1752075329876,0.75296,2655.9,2655.8,0.75294]
[1752075330076,0.75293,2656.0,2655.9,0.75291]
[1752075330280,1.43153,2656.0,2655.9,1.42841]
[1752075330978,0.75293,2656.0,2655.9,2.37791]
[1752075331178,1.43153,2656.0,2655.9,2.37793]
[1752075331378,1.43153,2656.0,2655.9,1.42843]
[1752075332179,0.75296,2655.9,2655.7,0.9495]
[1752075332375,1.43318,2656.1,2656.0,0.7529]
[1752075332574,2.11178,2656.1,2656.0,1.4284]
[1752075333281,2.11178,2656.1,2656.0,2.6876]
[1752075333482,1.3589,2656.1,2656.0,2.6876]
[1752075333682,0.6803,2656.1,2656.0,3.6371]
[1752075333884,2.11178,2656.1,2656.0,2.6876]
[1752075334578,1.3589,2656.1,2656.0,2.6876]
[1752075334774,1.3589,2656.1,2656.0,3.6371]
[1752075334972,2.11178,2656.1,2656.0,3.6371]
[1752075335184,2.11178,2656.1,2656.0,2.6876]
[1752075337279,3.2078,2656.2,2656.1,0.75288]
[1752075337485,3.2078,2656.2,2656.1,2.41578]
[1752075337686,4.63925,2656.2,2656.1,2.41578]
[1752075337984,4.63925,2656.2,2656.1,1.42838]
[1752075338386,3.96065,2656.2,2656.1,1.42838]
[1752075338587,5.70833653,2656.2,2656.1,1.42838]
[1752075338788,6.65048653,2656.2,2655.5,4.46221774]
[1752075338983,1.74768653,2655.7,2655.6,2.10898]
[1752075339182,1.74768653,2655.7,2655.6,2.78448]
[1752075339383,0.75297,2655.8,2655.7,0.75299]
[1752075339583,0.75297,2655.8,2655.7,1.38199]
[1752075340584,1.41507,2655.8,2655.7,2.36939]
[1752075341381,0.652,2655.9,2655.8,0.75296]
[1752075341582,0.652,2655.9,2655.8,2.36936]
[1752075341781,2.06703,2655.9,2655.8,2.36936]
[1752075342681,2.06703,2655.9,2655.8,1.6164]
[1752075342888,2.06703,2655.9,2655.8,0.629]
[1752075343482,3.81471653,2655.9,2655.8,0.629]
[1752075344179,0.75296,2655.8,2655.7,0.75297]
[1752075344377,1.41506,2655.8,2655.7,1.38197]
[1752075344885,0.75304,2655.6,2655.5,0.75302]
[1752075345086,0.75304,2655.6,2655.5,2.74432]
[1752075345588,1.41514,2655.6,2655.5,2.74432]
[1752075346386,0.75307,2655.4,2655.3,4.94829]
[1752075346688,1.41517,2655.4,2655.3,3.2078]
[1752075346889,1.41517,2655.4,2655.3,3.8368]
[1752075347589,1.41517,2655.4,2655.3,4.5899]
[1752075348690,0.75313,2655.2,2655.1,0.75313]
[1752075348884,1.41523,2655.2,2655.1,2.70453]
[1752075349492,1.41523,2655.2,2655.1,1.9514]
[1752075349691,0.75316,2655.1,2655.0,0.75316]
[1752075349892,2.03796,2655.1,2655.0,1.38216]
[1752075351191,2.03796,2655.1,2655.0,0.629]
[1752075352193,1.2848,2655.1,2655.0,1.38219]
[1752075352491,2.03796,2655.1,2655.0,2.66569]
[1752075355594,0.75319,2655.0,2654.9,3.2078]
[1752075355791,0.75322,2654.9,2654.8,0.75325]
[1752075356183,0.75325,2654.8,2654.7,54.242]
[1752075356383,0.6621,2654.8,2654.6,1.3535]
[1752075356587,3.15665653,2654.7,2654.6,2.1068]
[1752075356790,3.81875653,2654.7,2654.6,2.7358]
[1752075357184,2.07107,2654.7,2654.6,2.7358]
[1752075357387,1.3178,2654.7,2654.6,2.7358]
[1752075357587,1.3178,2654.7,2654.6,3.7232]
[1752075359295,0.6621,2654.7,2654.6,3.7232]
[1752075360594,0.6239,2655.0,2654.9,0.75322]
[1752075360895,3.2078,2655.2,2655.1,0.75316]
[1752075360896,3.96095,2655.2,2655.1,0.75316]
[1752075361092,4.62305,2655.2,2655.1,1.38216]
[1752075361291,3.96095,2655.2,2655.1,1.38216]
[1752075361491,0.75315,2655.2,2655.1,1.38216]
[1752075361692,1.41525,2655.2,2655.1,1.38216]
[1752075361893,0.6239,2655.3,2655.2,0.75313]
[1752075361894,1.377,2655.3,2655.2,0.75313]
[1752075362094,0.75315,2655.2,2655.1,0.75314]
[1752075362292,1.41525,2655.2,2655.1,1.38214]
[1752075363190,0.6621,2655.2,2655.1,1.38214]
[1752075363387,0.6621,2655.2,2655.1,2.69654]
[1752075363799,1.41523,2655.2,2655.1,2.69654]
[1752075364592,0.6621,2655.2,2655.1,2.69654]
[1752075365092,0.6621,2655.2,2655.1,3.68394]
[1752075365298,1.41523,2655.2,2655.1,3.68394]
[1752075365894,0.6621,2655.2,2655.1,3.68394]
[1752075366291,0.6239,2655.3,2655.2,0.75313]
[1752075366491,1.74768653,2655.7,2655.5,0.75302]
[1752075366696,1.37624,2655.6,2655.5,1.38202]
[1752075367204,2.03834,2655.6,2655.5,1.38202]
[1752075367702,0.6232,2655.6,2655.5,1.38202]
[1752075368500,2.03832,2655.6,2655.5,1.38202]
[1752075368899,1.2853,2655.6,2655.5,3.64372]
[1752075369400,2.03832,2655.6,2655.5,3.64372]
[1752075369602,2.03832,2655.6,2655.5,2.63612]
[1752075369803,1.2853,2655.6,2655.5,2.63612]
[1752075370399,1.2853,2655.6,2655.5,3.64372]
[1752075370701,2.03832,2655.6,2655.5,3.64372]
[1752075370900,1.2853,2655.6,2655.5,3.64372]
[1752075371101,2.03832,2655.6,2655.5,3.64372]
[1752075371401,1.2853,2655.6,2655.5,3.64372]
[1752075372404,2.03832,2655.6,2655.5,3.64372]
[1752075373001,1.2853,2655.6,2655.5,3.64372]
[1752075373202,2.03832,2655.6,2655.5,3.64372]
[1752075373403,1.2853,2655.6,2655.5,3.64372]
[1752075374602,2.03832,2655.6,2655.5,3.64372]
[1752075374903,1.2853,2655.6,2655.5,3.64372]
[1752075375301,0.6621,2655.6,2655.5,3.64372]
[1752075375508,0.6272,2655.9,2655.8,0.75296]
[1752075375806,1.38016,2655.9,2655.8,1.40096]
[1752075376203,1.38016,2655.9,2655.8,0.648]
[1752075376507,2.05426,2655.9,2655.8,1.40096]
[1752075379600,3.80194653,2655.9,2655.8,0.648]
[1752075380007,3.80194653,2655.9,2655.8,1.40096]
[1752075380696,3.80194653,2655.9,2655.8,0.648]
[1752075380905,3.80194653,2655.9,2655.7,0.75297]
[1752075380906,0.75296,2655.8,2655.7,0.75297]
[1752075381207,1.42706,2655.8,2655.7,1.40097]
[1752075381408,1.42706,2655.8,2655.7,0.75297]
[1752075381805,1.42706,2655.8,2655.7,0.648]
[1752075382306,1.42706,2655.8,2655.7,1.40099]
[1752075382503,0.75305,2655.5,2655.4,0.75306]
[1752075382704,0.75313,2655.3,2655.2,0.7531]
[1752075382903,3.17491653,2655.3,2655.2,1.4011]
[1752075384406,3.17490653,2655.3,2655.2,0.75313]
[1752075384606,2.50080653,2655.3,2655.2,1.40113]
[1752075385109,0.75313,2655.2,2655.1,3.96094]
[1752075385308,0.75313,2655.2,2655.1,5.61654]
[1752075385505,0.75313,2655.2,2655.1,6.91294]
[1752075385704,1.42723,2655.2,2655.1,6.91294]
[1752075385906,1.42723,2655.2,2655.1,6.1598]
[1752075386111,1.42723,2655.2,2655.1,5.1522]
[1752075386311,1.42723,2655.2,2655.1,5.90536]
[1752075386809,1.42723,2655.2,2655.1,6.91296]
[1752075387611,0.6741,2655.2,2655.1,6.91296]
[1752075387806,1.42723,2655.2,2655.1,6.91296]
[1752075388309,0.6741,2655.2,2655.1,6.91296]
[1752075388712,1.42723,2655.2,2655.1,6.91296]
[1752075389213,0.6741,2655.2,2655.1,6.91296]
[1752075389409,1.42723,2655.2,2655.1,3.2078]
[1752075389608,1.42723,2655.2,2655.1,3.8558]
[1752075389810,1.42723,2655.2,2655.1,4.60896]
[1752075390612,0.6741,2655.2,2655.1,4.60896]
[1752075390812,1.42723,2655.2,2655.1,5.88606]
[1752075391707,0.6741,2655.2,2655.1,5.88606]
[1752075392913,0.6741,2655.2,2655.1,6.89366]
[1752075393314,0.6741,2655.2,2655.1,32.62966]
[1752075394809,1.42723,2655.2,2655.1,31.62206]
[1752075395010,0.6741,2655.2,2655.1,31.62206]
[1752075395615,0.6741,2655.2,2655.1,32.62966]
[1752075397017,0.6741,2655.2,2655.1,34.37734653]
[1752075399014,0.6741,2655.2,2655.1,32.62966]
[1752075399611,0.6741,2655.2,2655.1,31.62206]
[1752075399816,0.6741,2655.2,2655.1,32.54826]
[1752075405020,0.6741,2655.2,2655.1,31.62206]
[1752075405416,1.42723,2655.2,2655.1,31.61906]
[1752075405618,1.42723,2655.2,2655.1,30.34196]
[1752075406721,0.6741,2655.2,2655.1,30.34196]
[1752075406922,1.42723,2655.2,2655.1,30.34196]
[1752075407622,2.40263,2655.2,2655.1,3.8558]
[1752075407824,0.75319,2655.0,2654.9,0.75319]
[1752075408124,1.40439,2655.0,2654.9,0.75319]
[1752075408319,0.75322,2654.9,2654.8,5.21544774]
[1752075408526,3.81840653,2654.9,2654.8,26.48523]
[1752075409024,3.81840653,2654.9,2654.8,27.13083]
[1752075409324,3.81840653,2654.9,2654.8,31.59304774]
[1752075409524,1.3175,2654.9,2654.8,5.86104774]
[1752075409823,3.2078,2655.2,2655.1,0.75316]
[1752075410025,3.2078,2655.2,2655.1,1.39876]
[1752075410225,4.61213,2655.2,2655.1,1.39876]
[1752075410431,3.96093,2655.2,2655.1,1.39876]
[1752075411116,40.8,2655.3,2655.2,0.75313]
[1752075411319,41.4512,2655.3,2655.2,2.32493]
[1752075411624,0.75313,2655.2,2655.1,2.08704]
[1752075411927,1.40433,2655.2,2655.1,2.73264]
[1752075412622,0.6512,2655.2,2655.1,2.73264]
[1752075413722,3.3679901,2656.2,2655.1,14.87931]
[1752075414028,1.74768653,2656.0,2655.9,0.75293]
[1752075414224,44.66688256,2656.0,2655.9,1.39853]
[1752075414526,42.26799603,2656.0,2655.9,1.39853]
[1752075414930,2.22089603,2656.0,2655.9,1.39853]
[1752075415126,4.84228256,2656.0,2655.4,28.9388]
[1752075415319,0.75297,2655.8,2655.7,0.75297]
[1752075415524,4.61985256,2655.8,2655.7,0.75297]
[1752075415928,0.75301,2655.7,2655.6,0.75299]
[1752075416232,2.87220603,2655.7,2655.6,1.39859]
[1752075417126,2.87220603,2655.7,2655.6,0.6456]
[1752075417327,4.13430603,2655.7,2655.6,0.6456]
[1752075417626,4.13430603,2655.7,2655.6,1.39862]
[1752075417828,4.13430603,2655.7,2655.6,0.6456]
[1752075419130,4.13430603,2655.7,2655.6,1.39862]
[1752075419832,0.75302,2655.6,2655.5,3.96083]
[1752075420030,0.75302,2655.6,2655.5,4.60643]
[1752075420532,2.66632,2655.7,2655.6,0.75302]
[1752075420727,4.13404436,2655.7,2655.6,0.75302]
[1752075421335,0.75302,2655.6,2655.5,1.39863]
[1752075421529,1.40422,2655.6,2655.5,1.39863]
[1752075421829,2.87193779,2655.6,2655.5,1.39863]
[1752075422329,0.6512,2655.6,2655.5,1.39863]
[1752075422627,1.40422,2655.6,2655.5,1.39863]
[1752075422827,1.40422,2655.6,2655.2,2.53282]
[1752075422828,1.88273,2655.4,2655.0,1.67937]
[1752075423022,1.74768653,2655.1,2655.0,0.9262]
[1752075423223,2.50084653,2655.1,2655.0,1.5718]
[1752075423427,0.75316,2655.1,2655.0,1.5718]
[1752075423927,0.75316,2655.1,2654.9,5.61545963]
[1752075423928,0.75319,2655.0,2654.9,5.61545963]
[1752075424124,1.39809,2655.0,2654.9,6.26105963]
[1752075424329,1.39809,2655.0,2654.9,0.6456]
[1752075424928,1.39809,2655.0,2654.9,1.39882]
[1752075425329,0.75316,2655.2,2655.1,0.75314]
[1752075425529,2.39018653,2655.3,2655.1,4.45352882]
[1752075425735,0.75316,2655.1,2655.0,4.45352882]
[1752075426528,1.40436,2655.1,2655.0,5.85231882]
[1752075426728,0.6512,2655.1,2655.0,5.85231882]
[1752075427334,0.6512,2655.1,2655.0,1.39879]
[1752075428034,0.6512,2655.1,2655.0,2.35009]
[1752075429324,0.6512,2655.1,2655.0,0.75319]
[1752075429532,0.6512,2655.1,2655.0,1.41519]
[1752075430034,0.75322,2655.0,2654.9,0.75321]
[1752075430225,1.41772,2655.0,2654.9,1.41521]
[1752075430630,0.75322,2655.0,2654.9,1.41521]
[1752075430834,1.41772,2655.0,2654.9,1.41521]
[1752075431035,0.75322,2655.0,2654.9,1.41521]